Workbook

Sheet Hinweise
A1: Rückstellungen
A3: Voraussetzungen
A4: Um den Geschäftsgang buchen zu können müssen Sie Kenntnisse über die folgenden Lehrninhalte haben:
A5: Steuerrückstellungen
A6: Prozessrückstellungen
A7: Sonstige Rückstellungen
A8: Periodenfremde Aufwendungen
A9: Erträge aus der Auflösung von Rück-
A10: stellungen
A12: Vorgehensweise
A13: 1. Wählen Sie die Tabelle "Buchungen".
A15: 2. Buchen Sie die Geschäftsvorfälle
A16: entweder durch Direkteingabe in die entsprechenden Felder des Grundbuchs (Kontennummern und Beträge)
A17: oder durch Aufruf von Buchungsfenstern. (Klicken Sie dazu jeweils auf die Schaltfläche "Buchung" und beenden
A18: Sie die Eingabe mit "OK".)
A19: Die Kontennummern sind vierstellig anzugeben. (siehe Kontenplan). Bei zusammengesetzten Buchungssätzen
A20: sind die Buchungen nach der Höhe der Beträge geordnet vorzunehmen.
A22: 4. Sie können sich den Kontenplan mit Kontennummern jederzeit durch Klick auf den
A23: entsprechenden Button anzeigen lassen.
A25: 5. Die Richtigkeit Ihrer Buchungen wird bestätigt oder Sie werden auf
A26: Fehler hingewiesen. (Ohne Buchung werden Fehler angezeigt.)

Sheet Buchungen
A2: Rückstellungen
A3: Steuerrückstellungen, Sonstige Rückstellungen
G4: 0.19
A6: Geschäfts- vorfall 1 | B6: Unser Unternehmen rechnet mit Prozesskosten, die im nächsten Geschäftsjahr fällig werden, von 25.000,00 €. Der Gerichtsbescheid über 28.000,00 € trifft am 12.07. des nächsten Jahres ein und wird durch Banküberweisung beglichen.
A9: 31.12. | B9: Bildung der Rückstellung zum Jahresabschluss | D9: Rückstellung zum Jahres- abschluss | E9: 25000 | F9: =IF(AND(B13="6770",E13="3900"),"Die Konten sind richtig!","Mindestens ein Konto ist falsch!") -> Mindestens ein Konto ist falsch!
F10: =IF(AND(D13=E9,G13=E9),"Die Beträge sind richtig!","Mindestens ein Betrag ist falsch!") -> Mindestens ein Betrag ist falsch!
F11: =IF(AND(F9="Die Konten sind richtig!",F10="Die Beträge sind richtig!"),"Alles richtig!","Es sind noch Fehler vorhanden!") -> Es sind noch Fehler vorhanden!
A12: 1 | B12: Soll | C12: Konto | D12: € | E12: Haben | F12: Konto | G12: €
A13: Buchungssatz | C13: =IF(B13="","",VLOOKUP(B13,Kontenplan!$A$3:$B$23,2)) ->  | F13: =IF(E13="","",VLOOKUP(E13,Kontenplan!$A$3:$B$23,2)) -> 
A15: 12.07. | B15: Buchung bei Überweisung der Prozesskosten im neuen Geschäftsjahr | D15: Rückstellung | E15: 25000 | F15: =IF(AND(B19="3900",B20="6990",E19="2800"),"Die Konten sind richtig!","Mindestens ein Konto ist falsch!") -> Mindestens ein Konto ist falsch!
D16: Mehrkosten | E16: 3000 | F16: =IF(AND(D19=E15,D20=E16,G19=E17),"Die Beträge sind richtig!","Mindestens ein Betrag ist falsch!") -> Mindestens ein Betrag ist falsch!
D17: Gesamtkosten | E17: 28000 | F17: =IF(AND(F15="Die Konten sind richtig!",F16="Die Beträge sind richtig!"),"Alles richtig!","Es sind noch Fehler vorhanden!") -> Es sind noch Fehler vorhanden!
A18: 2 | B18: Soll | C18: Konto | D18: € | E18: Haben | F18: Konto | G18: €
A19: Buchungssatz | C19: =IF(B19="","",VLOOKUP(B19,Kontenplan!$A$3:$B$23,2)) ->  | F19: =IF(E19="","",VLOOKUP(E19,Kontenplan!$A$3:$B$23,2)) -> 
C20: =IF(B20="","",VLOOKUP(B20,Kontenplan!$A$3:$B$23,2)) ->  | F20: =IF(E20="","",VLOOKUP(E20,Kontenplan!$A$3:$B$23,2)) -> 
A22: Geschäfts- vorfall 2 | B22: Wir rechnen beim Jahresabschluss mit einer Gewerbesteuernachzahlung von 18.000,00 €. Laut Steuerbescheid werden am 15.06. des nächsten Geschäftsjahres 15.500,00 € mit der Bank überwiesen.
A24: 31.12. | B24: Bildung der Rückstellung zum Jahresabschluss | D24: Rückstellung zum Jahres- abschluss | E24: 18000 | F24: =IF(AND(B28="7700",E28="3800"),"Die Konten sind richtig!","Mindestens ein Konto ist falsch!") -> Mindestens ein Konto ist falsch!
F25: =IF(AND(D28=E24,G28=E24),"Die Beträge sind richtig!","Mindestens ein Betrag ist falsch!") -> Mindestens ein Betrag ist falsch!
F26: =IF(AND(F24="Die Konten sind richtig!",F25="Die Beträge sind richtig!"),"Alles richtig!","Es sind noch Fehler vorhanden!") -> Es sind noch Fehler vorhanden!
A27: 3 | B27: Soll | C27: Konto | D27: € | E27: Haben | F27: Konto | G27: €
A28: Buchungssatz | C28: =IF(B28="","",VLOOKUP(B28,Kontenplan!$A$3:$B$24,2)) ->  | F28: =IF(E28="","",VLOOKUP(E28,Kontenplan!$A$3:$B$23,2)) -> 
A30: 15.06. | B30: Buchung bei Überweisung der Gewerbesteuer im neuen Geschäftsjahr | D30: Rückstellung | E30: 18000 | F30: =IF(AND(B34="3800",E34="2800",E35="5480"),"Die Konten sind richtig!","Mindestens ein Konto ist falsch!") -> Mindestens ein Konto ist falsch!
D31: Steuerschuld | E31: 15500 | F31: =IF(AND(D34=E30,G34=E31,G35=E32),"Die Beträge sind richtig!","Mindestens ein Betrag ist falsch!") -> Mindestens ein Betrag ist falsch!
D32: Ertrag | E32: =E30-E31 -> 2500 | F32: =IF(AND(F30="Die Konten sind richtig!",F31="Die Beträge sind richtig!"),"Alles richtig!","Es sind noch Fehler vorhanden!") -> Es sind noch Fehler vorhanden!
A33: 4 | B33: Soll | C33: Konto | D33: € | E33: Haben | F33: Konto | G33: €
A34: Buchungssatz | C34: =IF(B34="","",VLOOKUP(B34,Kontenplan!$A$3:$B$23,2)) ->  | F34: =IF(E34="","",VLOOKUP(E34,Kontenplan!$A$3:$B$23,2)) -> 
F35: =IF(E35="","",VLOOKUP(E35,Kontenplan!$A$3:$B$23,2)) -> 
A37: Geschäfts- vorfall 3 | B37: Am 3.12. des alten Geschäftsjahres wurde ein Kaufvertrag über Baumwollstoffe geschlossen. Damaliger Auftragswert 30.000,00 € netto. Wegen des Preisverfalls an der Baumwollbörse, der sich zum Ende des Geschäftsjahres abzeichnet, dürfen die Rohstoffe im nächsten Jahr nur noch mit 25.000,00 € in die Kalkulation eingehen. Die Rechnung trifft am 03.02. des neuen Geschäftsjahres ein.
A41: 31.12. | B41: Bildung der Rückstellung zum Jahresabschluss | D41: Verlust durch den Preis- verfall | E41: 5000 | F41: =IF(AND(B45="6000",E45="3900"),"Die Konten sind richtig!","Mindestens ein Konto ist falsch!") -> Mindestens ein Konto ist falsch!
F42: =IF(AND(D45=E41,G45=E41),"Die Beträge sind richtig!","Mindestens ein Betrag ist falsch!") -> Mindestens ein Betrag ist falsch!
F43: =IF(AND(F41="Die Konten sind richtig!",F42="Die Beträge sind richtig!"),"Alles richtig!","Es sind noch Fehler vorhanden!") -> Es sind noch Fehler vorhanden!
A44: 5 | B44: Soll | C44: Konto | D44: € | E44: Haben | F44: Konto | G44: €
A45: Buchungssatz | C45: =IF(B45="","",VLOOKUP(B45,Kontenplan!$A$3:$B$23,2)) ->  | F45: =IF(E45="","",VLOOKUP(E45,Kontenplan!$A$3:$B$23,2)) -> 
A47: 03.02. | B47: Buchung bei Rechnungseingang. (Die Rohstoffe sind noch nicht bezahlt.) | D47: netto | E47: 30000 | F47: =IF(AND(B51="6000",B52="2600",B53="3900",E51="4400"),"Die Konten sind richtig!","Mindestens ein Konto ist falsch!") -> Mindestens ein Konto ist falsch!
D48: UmSt | E48: =ROUND(E47*G4,2) -> 5700 | F48: =IF(AND(D51=E47-E41,D52=E48,D53=E41,G51=E49),"Die Beträge sind richtig!","Mindestens ein Betrag ist falsch!") -> Mindestens ein Betrag ist falsch!
D49: brutto | E49: =E47+E48 -> 35700 | F49: =IF(AND(F47="Die Konten sind richtig!",F48="Die Beträge sind richtig!"),"Alles richtig!","Es sind noch Fehler vorhanden!") -> Es sind noch Fehler vorhanden!
A50: 6 | B50: Soll | C50: Konto | D50: € | E50: Haben | F50: Konto | G50: €
A51: Buchungssatz | C51: =IF(B51="","",VLOOKUP(B51,Kontenplan!$A$3:$B$24,2)) ->  | F51: =IF(E51="","",VLOOKUP(E51,Kontenplan!$A$3:$B$23,2)) -> 
C52: =IF(B52="","",VLOOKUP(B52,Kontenplan!$A$3:$B$24,2)) -> 
C53: =IF(B53="","",VLOOKUP(B53,Kontenplan!$A$3:$B$24,2)) -> 
A55: Geschäfts- vorfall 4 | B55: Für Steuerberatungskosten sind am Bilanzstichtag 4.200,00 € anzusetzen. Die Rechnung des Steuerberaters lautet am 15.05. über netto 3.800,00 €, die wir durch Banküberweisung begleichen.
A57: 31.12. | B57: Buchung am Bilanzstichtag | D57: Rückstelllungen für die Steuer- beratung | E57: 4200 | F57: =IF(AND(B61="6770",E61="3900"),"Die Konten sind richtig!","Mindestens ein Konto ist falsch!") -> Mindestens ein Konto ist falsch!
F58: =IF(AND(D61=E57,G61=E57),"Die Beträge sind richtig!","Mindestens ein Betrag ist falsch!") -> Mindestens ein Betrag ist falsch!
F59: =IF(AND(F57="Die Konten sind richtig!",F58="Die Beträge sind richtig!"),"Alles richtig!","Es sind noch Fehler vorhanden!") -> Es sind noch Fehler vorhanden!
A60: 7 | B60: Soll | C60: Konto | D60: € | E60: Haben | F60: Konto | G60: €
A61: Buchungssatz | C61: =IF(B61="","",VLOOKUP(B61,Kontenplan!$A$3:$B$23,2)) ->  | F61: =IF(E61="","",VLOOKUP(E61,Kontenplan!$A$3:$B$23,2)) -> 
A63: 15.05. | B63: Buchung bei Überweisung der Steuerberatungskosten | D63: netto | E63: 3800 | F63: =IF(AND(B67="3900",B68="2600",E67="2800",E68="5480"),"Die Konten sind richtig!","Mindestens ein Konto ist falsch!") -> Mindestens ein Konto ist falsch!
D64: UmSt | E64: =ROUND(E63*G4,2) -> 722 | F64: =IF(AND(D67=E57,D68=E64,G67=E65,G68=E57-E63),"Die Beträge sind richtig!","Mindestens ein Betrag ist falsch!") -> Mindestens ein Betrag ist falsch!
D65: brutto | E65: =E63+E64 -> 4522 | F65: =IF(AND(F63="Die Konten sind richtig!",F64="Die Beträge sind richtig!"),"Alles richtig!","Es sind noch Fehler vorhanden!") -> Es sind noch Fehler vorhanden!
A66: 8 | B66: Soll | C66: Konto | D66: € | E66: Haben | F66: Konto | G66: €
A67: Buchungssatz | C67: =IF(B67="","",VLOOKUP(B67,Kontenplan!$A$3:$B$23,2)) ->  | F67: =IF(E67="","",VLOOKUP(E67,Kontenplan!$A$3:$B$23,2)) -> 
C68: =IF(B68="","",VLOOKUP(B68,Kontenplan!$A$3:$B$23,2)) ->  | F68: =IF(E68="","",VLOOKUP(E68,Kontenplan!$A$3:$B$23,2)) -> 
A70: Geschäfts- vorfall 5 | B70: Im alten Geschäftsjahr waren Reparaturen am Lagergebäude notwendig, für die ein Kostenvoranschlag von 8.900,00 € vorlag. Die Reparaturen werden vom 12.01. bis zum 16.02. des nächsten Jahres durchgeführt. Die Abschlussrechnung über brutto 11.186,00 € wird am 25.02. des nächsten Jahres durch Banküberweisung beglichen.
A74: 31.12. | B74: Erfassung des Instandhaltungsaufwandes im alten Geschäftsjahr | D74: Kosten- voranschlag | E74: 8900 | F74: =IF(AND(B78="6160",E78="3900"),"Die Konten sind richtig!","Mindestens ein Konto ist falsch!") -> Mindestens ein Konto ist falsch!
F75: =IF(AND(D78=E74,G78=E74),"Die Beträge sind richtig!","Mindestens ein Betrag ist falsch!") -> Mindestens ein Betrag ist falsch!
F76: =IF(AND(F74="Die Konten sind richtig!",F75="Die Beträge sind richtig!"),"Alles richtig!","Es sind noch Fehler vorhanden!") -> Es sind noch Fehler vorhanden!
A77: 9 | B77: Soll | C77: Konto | D77: € | E77: Haben | F77: Konto | G77: €
A78: Buchungssatz | C78: =IF(B78="","",VLOOKUP(B78,Kontenplan!$A$3:$B$23,2)) ->  | F78: =IF(E78="","",VLOOKUP(E78,Kontenplan!$A$3:$B$23,2)) -> 
A80: 25.02. | B80: Banküberweisung der Handwerkerrechnung | D80: netto | E80: =E82-E81 -> 9400 | F80: =IF(AND(B84="3900",B85="2600",B86="6990",E84="2800"),"Die Konten sind richtig!","Mindestens ein Konto ist falsch!") -> Mindestens ein Konto ist falsch!
D81: UmSt | E81: =ROUND(E82*(G4*100)/(100+(G4*100)),2) -> 1786 | F81: =IF(AND(D84=E74,D85=E81,D86=E80-E74,G84=E82),"Die Beträge sind richtig!","Mindestens ein Betrag ist falsch!") -> Mindestens ein Betrag ist falsch!
D82: brutto | E82: 11186 | F82: =IF(AND(F80="Die Konten sind richtig!",F81="Die Beträge sind richtig!"),"Alles richtig!","Es sind noch Fehler vorhanden!") -> Es sind noch Fehler vorhanden!
A83: 10 | B83: Soll | C83: Konto | D83: € | E83: Haben | F83: Konto | G83: €
A84: Buchungssatz | C84: =IF(B84="","",VLOOKUP(B84,Kontenplan!$A$3:$B$23,2)) ->  | F84: =IF(E84="","",VLOOKUP(E84,Kontenplan!$A$3:$B$23,2)) -> 
C85: =IF(B85="","",VLOOKUP(B85,Kontenplan!$A$3:$B$23,2)) ->  | F85: =IF(E85="","",VLOOKUP(E85,Kontenplan!$A$3:$B$23,2)) -> 
C86: =IF(B86="","",VLOOKUP(B86,Kontenplan!$A$3:$B$23,2)) ->  | F86: =IF(E86="","",VLOOKUP(E86,Kontenplan!$A$3:$B$23,2)) -> 
A88: Geschäfts- vorfall 6 | B88: Wir rechnen beim Jahresabschluss mit einer Grundsteuernachzahlung von 2.000,00 €. Laut Steuerbescheid werden am 15.01. des nächsten Geschäftsjahres 2.500,00 € mit der Bank überwiesen.
A90: 31.12. | B90: Bildung der Steuerrückstellung zum Jahresabschluss | D90: Rückstellung zum Jahres- abschluss | E90: 2000 | F90: =IF(AND(B94="7020",E94="3800"),"Die Konten sind richtig!","Mindestens ein Konto ist falsch!") -> Mindestens ein Konto ist falsch!
F91: =IF(AND(D94=E90,G94=E90),"Die Beträge sind richtig!","Mindestens ein Betrag ist falsch!") -> Mindestens ein Betrag ist falsch!
F92: =IF(AND(F90="Die Konten sind richtig!",F91="Die Beträge sind richtig!"),"Alles richtig!","Es sind noch Fehler vorhanden!") -> Es sind noch Fehler vorhanden!
A93: 11 | B93: Soll | C93: Konto | D93: € | E93: Haben | F93: Konto | G93: €
A94: Buchungssatz | C94: =IF(B94="","",VLOOKUP(B94,Kontenplan!$A$3:$B$23,2)) ->  | F94: =IF(E94="","",VLOOKUP(E94,Kontenplan!$A$3:$B$23,2)) -> 
A96: 15.01. | B96: Buchung bei Überweisung der Grundsteuernachzahlung | D96: Rückstellung | E96: 2000 | F96: =IF(AND(B100="3800",B101="6990",E100="2800"),"Die Konten sind richtig!","Mindestens ein Konto ist falsch!") -> Mindestens ein Konto ist falsch!
D97: Steuerschuld | E97: 2500 | F97: =IF(AND(D100=E96,D101=E98,G100=E97),"Die Beträge sind richtig!","Mindestens ein Betrag ist falsch!") -> Mindestens ein Betrag ist falsch!
D98: Aufwand | E98: 500 | F98: =IF(AND(F96="Die Konten sind richtig!",F97="Die Beträge sind richtig!"),"Alles richtig!","Es sind noch Fehler vorhanden!") -> Es sind noch Fehler vorhanden!
A99: 12 | B99: Soll | C99: Konto | D99: € | E99: Haben | F99: Konto | G99: €
A100: Buchungssatz | C100: =IF(B100="","",VLOOKUP(B100,Kontenplan!$A$3:$B$23,2)) ->  | F100: =IF(E100="","",VLOOKUP(E100,Kontenplan!$A$3:$B$23,2)) -> 
C101: =IF(B101="","",VLOOKUP(B101,Kontenplan!$A$3:$B$23,2)) -> 
A103: Geschäfts- vorfall 7 | B103: Für einen ausstehenden Prozess beim Verwaltungsgericht müssen wir mit Prozesskosten von 5.000,00 € rechnen. Die Urteilsverkündung steht am 15.04. des nächsten Jahres an. Laut Gerichtsurteil müssen alle Prozesskosten vom Prozessgegner getragen werden.
A106: 31.12. | B106: Bildung der Prozessrückstellung | D106: Rückstellung zum Jahres- abschluss | E106: 5000 | F106: =IF(AND(B110="6770",E110="3900"),"Die Konten sind richtig!","Mindestens ein Konto ist falsch!") -> Mindestens ein Konto ist falsch!
F107: =IF(AND(D110=E106,G110=E106),"Die Beträge sind richtig!","Mindestens ein Betrag ist falsch!") -> Mindestens ein Betrag ist falsch!
F108: =IF(AND(F106="Die Konten sind richtig!",F107="Die Beträge sind richtig!"),"Alles richtig!","Es sind noch Fehler vorhanden!") -> Es sind noch Fehler vorhanden!
A109: 13 | B109: Soll | C109: Konto | D109: € | E109: Haben | F109: Konto | G109: €
A110: Buchungssatz | C110: =IF(B110="","",VLOOKUP(B110,Kontenplan!$A$3:$B$23,2)) ->  | F110: =IF(E110="","",VLOOKUP(E110,Kontenplan!$A$3:$B$23,2)) -> 
A112: 15.04. | B112: Buchung bei Urteilsverkündung | D112: Auflösung der Rückstellung | E112: 5000 | F112: =IF(AND(B116="3900",E116="5480"),"Die Konten sind richtig!","Mindestens ein Konto ist falsch!") -> Mindestens ein Konto ist falsch!
F113: =IF(AND(D116=E112,G116=E112),"Die Beträge sind richtig!","Mindestens ein Betrag ist falsch!") -> Mindestens ein Betrag ist falsch!
F114: =IF(AND(F112="Die Konten sind richtig!",F113="Die Beträge sind richtig!"),"Alles richtig!","Es sind noch Fehler vorhanden!") -> Es sind noch Fehler vorhanden!
A115: 14 | B115: Soll | C115: Konto | D115: € | E115: Haben | F115: Konto | G115: €
A116: Buchungssatz | C116: =IF(B116="","",VLOOKUP(B116,Kontenplan!$A$3:$B$23,2)) ->  | F116: =IF(E116="","",VLOOKUP(E116,Kontenplan!$A$3:$B$23,2)) -> 
A119: Geschäfts- vorfall 8 | B119: Im November des alten Geschäftsjahres haben wir Hilfsstoffe im Wert von 22.000,00 € netto gekauft, die fix zum 31.01. des neuen Geschäftsjahres geliefert werden sollen. Im Dezember sind jedoch die Preis so stark gefallen, dass dieses Hilfsstoffe nur noch mit 18.000,00 € bewertet werden können. Die Rechnung des Lieferers trifft zeitgleich mit der Lieferung am 31.01. ein.
A123: 31.12. | B123: Bildung der Rückstellung zum Jahresabschluss | D123: Verlust durch den Preis- verfall | E123: 4000 | F123: =IF(AND(B127="6020",E127="3900"),"Die Konten sind richtig!","Mindestens ein Konto ist falsch!") -> Mindestens ein Konto ist falsch!
F124: =IF(AND(D127=E123,G127=E123),"Die Beträge sind richtig!","Mindestens ein Betrag ist falsch!") -> Mindestens ein Betrag ist falsch!
F125: =IF(AND(F123="Die Konten sind richtig!",F124="Die Beträge sind richtig!"),"Alles richtig!","Es sind noch Fehler vorhanden!") -> Es sind noch Fehler vorhanden!
A126: 15 | B126: Soll | C126: Konto | D126: € | E126: Haben | F126: Konto | G126: €
A127: Buchungssatz | C127: =IF(B127="","",VLOOKUP(B127,Kontenplan!$A$3:$B$23,2)) ->  | F127: =IF(E127="","",VLOOKUP(E127,Kontenplan!$A$3:$B$23,2)) -> 
A129: 31.01. | B129: Buchung bei Rechnungseingang. (Die Rohstoffe sind noch nicht bezahlt.) | D129: netto | E129: 22000 | F129: =IF(AND(B133="6020",B134="2600",B135="3900",E133="4400"),"Die Konten sind richtig!","Mindestens ein Konto ist falsch!") -> Mindestens ein Konto ist falsch!
D130: UmSt | E130: =ROUND(E129*G4,2) -> 4180 | F130: =IF(AND(D133=E129-E123,D134=E130,D135=E123,G133=E131),"Die Beträge sind richtig!","Mindestens ein Betrag ist falsch!") -> Mindestens ein Betrag ist falsch!
D131: brutto | E131: =E129+E130 -> 26180 | F131: =IF(AND(F129="Die Konten sind richtig!",F130="Die Beträge sind richtig!"),"Alles richtig!","Es sind noch Fehler vorhanden!") -> Es sind noch Fehler vorhanden!
A132: 16 | B132: Soll | C132: Konto | D132: € | E132: Haben | F132: Konto | G132: €
A133: Buchungssatz | C133: =IF(B133="","",VLOOKUP(B133,Kontenplan!$A$3:$B$23,2)) ->  | F133: =IF(E133="","",VLOOKUP(E133,Kontenplan!$A$3:$B$23,2)) -> 
C134: =IF(B134="","",VLOOKUP(B134,Kontenplan!$A$3:$B$23,2)) ->  | F134: =IF(E134="","",VLOOKUP(E134,Kontenplan!$A$3:$B$23,2)) -> 
C135: =IF(B135="","",VLOOKUP(B135,Kontenplan!$A$3:$B$23,2)) ->  | F135: =IF(E135="","",VLOOKUP(E135,Kontenplan!$A$3:$B$23,2)) -> 
A137: Geschäfts- vorfall 9
A140: 31.12. | B140: Erfassung des Instandhaltungsaufwandes im alten Geschäftsjahr | D140: Kosten- voranschlag | E140: 2400 | F140: =IF(AND(B144="6160",E144="3900"),"Die Konten sind richtig!","Mindestens ein Konto ist falsch!") -> Mindestens ein Konto ist falsch!
F141: =IF(AND(D144=E140,G144=E140),"Die Beträge sind richtig!","Mindestens ein Betrag ist falsch!") -> Mindestens ein Betrag ist falsch!
F142: =IF(AND(F140="Die Konten sind richtig!",F141="Die Beträge sind richtig!"),"Alles richtig!","Es sind noch Fehler vorhanden!") -> Es sind noch Fehler vorhanden!
A143: 17 | B143: Soll | C143: Konto | D143: € | E143: Haben | F143: Konto | G143: €
A144: Buchungssatz | C144: =IF(B144="","",VLOOKUP(B144,Kontenplan!$A$3:$B$23,2)) ->  | F144: =IF(E144="","",VLOOKUP(E144,Kontenplan!$A$3:$B$23,2)) -> 
A146: 14.02. | B146: Barzahlung der Dachdeckerrechnung | D146: netto | E146: =E148-E147 -> 1800 | F146: =IF(AND(B150="3900",B151="2600",E150="2880",E151="5480"),"Die Konten sind richtig!","Mindestens ein Konto ist falsch!") -> Mindestens ein Konto ist falsch!
D147: UmSt | E147: =ROUND(E148*(G4*100)/(100+(G4*100)),2) -> 342 | F147: =IF(AND(D150=E140,D151=E147,G150=E148,G151=E140-E146),"Die Beträge sind richtig!","Mindestens ein Betrag ist falsch!") -> Mindestens ein Betrag ist falsch!
D148: brutto | E148: 2142 | F148: =IF(AND(F146="Die Konten sind richtig!",F147="Die Beträge sind richtig!"),"Alles richtig!","Es sind noch Fehler vorhanden!") -> Es sind noch Fehler vorhanden!
A149: 18 | B149: Soll | C149: Konto | D149: € | E149: Haben | F149: Konto | G149: €
A150: Buchungssatz | C150: =IF(B150="","",VLOOKUP(B150,Kontenplan!$A$3:$B$23,2)) ->  | F150: =IF(E150="","",VLOOKUP(E150,Kontenplan!$A$3:$B$23,2)) -> 
C151: =IF(B151="","",VLOOKUP(B151,Kontenplan!$A$3:$B$23,2)) ->  | F151: =IF(E151="","",VLOOKUP(E151,Kontenplan!$A$3:$B$23,2)) -> 

Sheet Kontenplan
B1: Kontenplan
A3: Nr. | B3: Konto
A4: 2600 | B4: Vorsteuer
A5: 2800 | B5: Kreditinstitute/Bank
A6: 2880 | B6: Kasse
A7: 3800 | B7: Steuerrückstellungen
A8: 3900 | B8: Sonstige Rückstelllungen
A9: 4200 | B9: Verbindlichkeiten g. Kreditinstituten
A10: 4400 | B10: Verbindlichkeiten a.L.u.L.
A11: 4800 | B11: Umsatzsteuer
A12: 5480 | B12: Ertr. a. d. Aufl. von Rückstellungen
A13: 5710 | B13: Zinserträge
A14: 6000 | B14: Aufwendungen für Rohstoffe
A15: 6020 | B15: Aufwendungen für Hilfsstoffe
A16: 6160 | B16: Fremdinstandhaltung
A17: 6700 | B17: Mietaufwendungen
A18: 6710 | B18: Leasingaufwendungen
A19: 6770 | B19: Rechts- und Beratungskosten
A20: 6990 | B20: Periodenfremde Aufwendungen
A21: 7020 | B21: Grundsteuer
A22: 7030 | B22: Kraftfahrzeugsteuer
A23: 7510 | B23: Zinsaufwendungen
A24: 7700 | B24: Gewerbesteuer
